fUST/lending_fUST_20251218
["ID","MTS","AMOUNT","RATE_DAILY","PERIOD"]
[398951056,1766016799657,500.0,0.00013699,2]
[398951057,1766016799682,163.40184933,0.00013699,2]
[398951058,1766016800424,500.5754063,0.00013699,2]
[398951059,1766016800732,500.0,0.00013699,2]
[398951060,1766016800927,500.0,0.00013699,2]
[398951061,1766016801603,455.22271449,0.00013699,2]
[398951062,1766016802095,300.0,0.00013673,2]
[398951063,1766016802241,500.0,0.00013699,2]
[398951064,1766016803395,500.0,0.00013699,2]
[398951065,1766016803651,500.0,0.00013699,2]
[398951066,1766016803677,500.0,0.00013273,2]
[398951067,1766016843164,500.0,0.00013273,2]
[398951068,1766016843205,843.70000471,0.00013821,2]
[398951069,1766016843236,500.7777123,0.00013699,2]
[398951070,1766016843260,500.0,0.00013273,2]
[398951071,1766016843284,500.0,0.00013699,2]
[398951072,1766016843308,500.0,0.00013821,2]
[398951073,1766016843331,220.1870112,0.00013699,2]
[398951074,1766016845573,157.85917811,0.00013699,2]
[398951075,1766016845607,500.0,0.00013699,2]
[398951076,1766016845653,500.77790251,0.00014247,2]
[398951077,1766016845813,500.0,0.00013273,2]
[398951078,1766016845841,1000.0,0.00013821,2]
[398951079,1766016845876,1500.0,0.00014368,2]
[398951080,1766016845939,1500.0,0.00014916,2]
[398951081,1766016846657,500.0,0.00013699,2]
[398951082,1766016846723,501.38282436,0.00014247,2]
[398951083,1766016847061,500.0,0.00013699,2]
[398951084,1766016847119,500.38306836,0.00014247,2]
[398951085,1766016847335,500.0,0.00013699,2]
[398951086,1766016847395,503.51294868,0.00014247,2]
[398951087,1766016847963,500.0,0.00013699,2]
[398951088,1766016848032,500.75159954,0.00014247,2]
[398951089,1766016848607,523.96962015,0.00013699,2]
[398951090,1766016848764,159.16726899,0.00013699,2]
[398951091,1766016849896,500.0,0.00013699,2]
[398951092,1766016852042,500.60528936,0.00013699,2]
[398951093,1766016852955,500.0,0.00013699,2]
[398951094,1766016853270,500.0,0.00013699,2]
[398951095,1766016853732,500.0,0.00013699,2]
[398951096,1766016854977,500.0,0.00013273,2]
[398951097,1766016855018,1000.0,0.00013821,2]
[398951098,1766016855085,1500.0,0.00014368,2]
[398951099,1766016855137,1012.44532896,0.00014916,2]
[398951100,1766016855477,500.0,0.00013699,2]
[398951101,1766016855531,524.55220028,0.00014247,2]
[398951102,1766016855608,177.80130158,0.00013699,2]
[398951103,1766016855747,500.0,0.00013699,2]
[398951104,1766016855898,500.21082262,0.00013699,2]
[398951105,1766016904039,159.90342676,0.00013699,2]
[398951106,1766016904076,500.41008325,0.00013699,2]
[398951107,1766016904162,500.36322289,0.00013699,2]
[398951108,1766016904250,500.0,0.00013273,2]
[398951109,1766016904301,433.72408148,0.00013821,2]
[398951110,1766016904330,500.0,0.00013699,2]
[398951111,1766016907132,500.0,0.00013699,2]
[398951112,1766016907156,303.44934508,0.00013699,2]
[398951113,1766016907182,1002.2923808,0.00014247,2]
[398951114,1766016907570,160.8862769,0.00013699,2]
[398951115,1766016907600,502.07496942,0.00013699,2]
[398951116,1766016907743,500.0,0.00013699,2]
[398951117,1766016907826,500.0,0.00013699,2]
[398951118,1766016907853,1000.83888354,0.00014247,2]
[398951119,1766016907877,500.0,0.00013699,2]
[398951120,1766016907901,500.0,0.00013273,2]
[398951121,1766016907925,500.0,0.00013821,2]
[398951122,1766016908139,500.0,0.00013699,2]
[398951123,1766016908207,500.67222143,0.00014247,2]
[398951124,1766016908279,500.0,0.00013699,2]
[398951125,1766016908439,500.0,0.00013699,2]
[398951126,1766016908483,1001.36294902,0.00014247,2]
[398951127,1766016911338,500.0,0.00013273,2]
[398951128,1766016911388,502.53621644,0.00013821,2]
[398951129,1766016911447,500.0,0.00013273,2]
[398951130,1766016911482,500.0,0.00013273,2]
[398951131,1766016911509,501.77259446,0.00013821,2]
[398951132,1766016911539,1000.0,0.00013821,2]
[398951133,1766016911591,510.83636242,0.00014368,2]
[398951134,1766016918347,500.6320925,0.00013699,2]
[398951135,1766016921782,463.90863867,0.00013699,2]
[398951136,1766016921801,36.09136133,0.00013699,2]
[398951137,1766016921836,501.82041908,0.00014247,2]
[398951138,1766016923348,500.0,0.00013699,2]
[398951139,1766016923398,501.04297309,0.00014247,2]
[398951140,1766016924259,500.0,0.00013699,2]
[398951141,1766016924398,1000.0,0.00014247,2]
[398951142,1766016924423,794.9527478,0.00014795,2]
[398951143,1766016944140,45495.95584586,0.00014,120]
[398951144,1766016944169,1292923.03946724,0.00014,120]
[398951145,1766016944209,249369.606,0.00014,120]
[398951146,1766016944229,18385.68215467,0.00014,120]
[398951147,1766016944254,25000.0,0.00014,120]
[398951148,1766016944278,113487.9856092,0.00014,120]
[398951149,1766016944301,1000000.0,0.00014,120]
[398951150,1766016944325,100000.0,0.00014,120]
[398951151,1766016944351,4500.0,0.00014,120]
[398951152,1766016944373,4500.0,0.00014,120]
[398951153,1766016944396,4500.0,0.00014,120]
[398951154,1766016944421,4500.0,0.00014,120]
[398951155,1766016944447,1000.0,0.00014,120]
[398951156,1766016944471,25000.0,0.00014,120]
[398951157,1766016944493,2000.0,0.00014,120]
[398951158,1766016944515,500.0,0.00014,120]
[398951159,1766016944540,111539.20932137,0.00014,120]
[398951160,1766016963383,500.0,0.00013699,2]
[398951161,1766016963414,502.32868097,0.00013699,2]
[398951162,1766016965270,500.0,0.00013699,2]
[398951163,1766016965322,1000.80364139,0.00014247,2]
[398951164,1766016966478,500.0,0.00013699,2]
[398951165,1766016966536,202.38278314,0.00014247,2]
[398951166,1766016967338,503.9049426,0.00013699,2]
[398951168,1766017023871,500.0,0.00013699,2]
[398951169,1766017023905,1000.0,0.00014247,2]
[398951170,1766017023934,500.0,0.00013699,2]
[398951171,1766017023962,1143.60122599,0.00014795,2]
[398951172,1766017023989,500.0,0.00013699,2]
[398951173,1766017024017,1001.69450208,0.00014247,2]
[398951174,1766017024171,500.0,0.00013699,2]
[398951175,1766017024200,500.0,0.00013273,2]
[398951176,1766017024227,1000.96774051,0.00014247,2]
[398951177,1766017025426,500.0,0.00013699,2]
[398951178,1766017025491,739.20580255,0.00014247,2]
[398951179,1766017025667,416.10896749,0.00013699,2]
[398951181,1766017076556,150.0,0.00015,2]
[398951182,1766017084391,500.0,0.00013699,2]
[398951183,1766017143624,501.85091164,0.00013699,2]
[398951184,1766017143899,501.07262896,0.00013699,2]
[398951185,1766017147066,500.0,0.00013273,2]
[398951186,1766017147939,500.16126557,0.00013699,2]
[398951187,1766017149827,500.0,0.00013273,2]
[398951188,1766017150170,500.0,0.00013273,2]
[398951189,1766017150914,635.7340641,0.00013699,2]
[398951190,1766017151094,615.26183664,0.00013273,2]
[398951191,1766017151697,500.0,0.00013699,2]
[398951192,1766017151866,500.0,0.00013699,2]
[398951193,1766017153649,500.0,0.00013273,2]
[398951194,1766017153756,173.10354074,0.00013699,2]
[398951195,1766017153812,517.98548464,0.00013699,2]
[398951196,1766017154799,457.96658946,0.00013273,2]
[398951197,1766017156992,500.0,0.00013699,2]
[398951198,1766017158242,500.0,0.00013699,2]
[398951199,1766017204079,503.89188307,0.00013699,2]
[398951200,1766017204107,500.0,0.00013699,2]
[398951201,1766017204145,500.0,0.00014247,2]
[398951202,1766017204323,159.50754932,0.00013699,2]
[398951203,1766017204643,164.77608943,0.00013699,2]
[398951204,1766017204813,1000.0,0.00013821,2]
[398951205,1766017204850,500.0,0.00013699,2]
[398951206,1766017204880,1107.68986971,0.00014368,2]
[398951207,1766017204928,500.0,0.00013273,2]
[398951208,1766017205451,500.0,0.00013699,2]
[398951209,1766017205642,220.1870112,0.00013699,2]
[398951210,1766017207325,513.616961,0.00013699,2]
[398951211,1766017207874,157.85917811,0.00013699,2]
[398951212,1766017208226,500.0,0.00013699,2]
[398951213,1766017208381,500.0,0.00013699,2]
[398951214,1766017209314,500.0,0.00013699,2]
[398951215,1766017209344,500.0,0.00013273,2]
[398951216,1766017209435,1000.0,0.00013821,2]
[398951217,1766017210782,500.0,0.00013699,2]
[398951218,1766017211138,500.0,0.00013699,2]
[398951219,1766017211260,523.96962015,0.00013699,2]
[398951220,1766017218262,500.0,0.00013273,2]
[398951221,1766017263654,296.12272557,0.00013699,2]
[398951222,1766017263683,500.47750045,0.00013699,2]
[398951223,1766017275861,500.0,0.00013699,2]
[398951224,1766017278261,163.40184933,0.00013699,2]
[398951225,1766017278369,533.996288,0.00013699,2]
[398951226,1766017278613,500.85338205,0.00013699,2]
[398951227,1766017279301,500.5754063,0.00013699,2]
[398951228,1766017279595,500.0,0.00013699,2]
[398951229,1766017280170,500.0,0.00013699,2]
[398951230,1766017281038,455.22271449,0.00013699,2]
[398951231,1766017281069,500.0,0.00013699,2]
[398951232,1766017281370,500.0,0.00013699,2]
[398951233,1766017281630,300.0,0.00013673,2]
[398951234,1766017282302,500.0,0.00013273,2]
[398951235,1766017282529,500.0,0.00013699,2]
[398951236,1766017282702,500.0,0.00013699,2]
[398951237,1766017323708,500.0,0.00013273,2]
[398951238,1766017323775,500.0,0.00013821,2]
[398951239,1766017324662,501.00898915,0.00013699,2]
[398951240,1766017325610,500.0,0.00013699,2]
[398951241,1766017329852,500.77790251,0.00013699,2]
[398951242,1766017330712,500.0,0.00013273,2]
[398951243,1766017332641,500.38306836,0.00013699,2]
[398951244,1766017335777,1000.0,0.00013821,2]
[398951245,1766017342878,500.75159954,0.00013699,2]
[398951246,1766017351018,170.12,0.0001,2]
[398951247,1766017383816,500.65651174,0.00013699,2]
[398951248,1766017448173,501.38282436,0.00013699,2]
[398951249,1766017450155,1000.0,0.00013821,2]
[398951250,1766017450208,500.0,0.00013273,2]
[398951251,1766017504127,500.0,0.00013699,2]
[398951252,1766017504226,500.0,0.00013699,2]
[398951253,1766017504601,500.52603568,0.00013699,2]
[398951254,1766017505581,500.0,0.00013273,2]
[398951255,1766017505757,500.0,0.00013699,2]
[398951256,1766017507170,500.0,0.00013699,2]
[398951257,1766017507224,158.11043201,0.00013699,2]
[398951258,1766017682411,319.2359778,0.00010618,2]
[398951269,1766017832532,-432.41893452,0.00013273,2]
[398951270,1766017832544,-67.58106548,0.00013273,2]
[398951271,1766017832554,-500.0,0.00013273,2]
[398951272,1766017832563,-483.78047314,0.00013273,2]
[398951386,1766017838711,-16.21952686,0.00013273,2]
[398951388,1766017838721,-608.0,0.00013273,2]
[398951390,1766017838730,-3188.8306331,0.00013306,2]
[398951392,1766017838739,-300.0,0.00013698,2]
[398951394,1766017838748,-300.0,0.00013698,2]
[398951396,1766017838757,-300.0,0.00013698,2]
[398951398,1766017838766,-1200.0,0.00013698,2]
[398951400,1766017838775,-300.0,0.00013698,2]
[398951402,1766017838784,-300.0,0.00013698,2]
[398951404,1766017838794,-341.88956799,0.00013699,2]
[398951406,1766017838804,-500.7777123,0.00013699,2]
[398951408,1766017838813,-564.67043986,0.00013699,2]
[398951410,1766017838822,-500.0,0.00013699,2]
[398951412,1766017838834,-500.0,0.00013699,2]
[398951414,1766017838843,-503.51294868,0.00013699,2]
[398951417,1766017838853,-843.70000471,0.00013821,2]
[398951435,1766017838984,-500.0,0.00013821,2]
[398951437,1766017838993,-150.0,0.00013972,2]
[398951439,1766017839003,-500.0,0.00014245,2]
[398951441,1766017839013,-500.0,0.00014245,2]
[398951443,1766017839023,-500.0,0.00014245,2]
[398951445,1766017839032,-500.0,0.00014245,2]
[398951447,1766017839042,-500.0,0.00014245,2]
[398951449,1766017839053,-500.0,0.00014245,2]
[398951452,1766017839062,-500.0,0.00014245,2]
[398951453,1766017839072,-500.0,0.00014245,2]
[398951455,1766017839082,-500.0,0.00014245,2]
[398951458,1766017839093,-500.0,0.00014245,2]
[398951459,1766017839107,-500.0,0.00014245,2]
[398951461,1766017839116,-500.0,0.00014245,2]
[398951463,1766017839126,-396.97541787,0.00014245,2]
[398951465,1766017839135,-500.0,0.00014245,2]
[398951467,1766017839146,-500.0,0.00014245,2]
[398951470,1766017839156,-500.0,0.00014245,2]
[398951471,1766017839166,-500.0,0.00014245,2]
[398951474,1766017839176,-350.81133755,0.00014245,2]
[398951476,1766017839186,-500.0,0.00014245,2]
[398951478,1766017839195,-500.0,0.00014245,2]
[398951480,1766017839204,-500.0,0.00014245,2]
[398951482,1766017839214,-500.0,0.00014245,2]
[398951483,1766017839223,-305.87110669,0.00014245,2]
[398951485,1766017839232,-500.0,0.00014245,2]
[398951487,1766017839241,-542.87729152,0.00014245,2]
[398951489,1766017839251,-500.0,0.00014245,2]
[398951490,1766017839260,-500.0,0.00014245,2]
[398951492,1766017839268,-500.0,0.00014245,2]
[398951493,1766017839278,-500.0,0.00014245,2]
[398951494,1766017839287,-500.0,0.00014245,2]
[398951495,1766017839296,-500.0,0.00014245,2]
[398951496,1766017839305,-500.0,0.00014245,2]
[398951497,1766017839315,-500.0,0.00014245,2]
[398951498,1766017839325,-500.0,0.00014245,2]
[398951499,1766017839335,-500.0,0.00014245,2]
[398951500,1766017839345,-500.0,0.00014245,2]
[398951501,1766017839354,-500.0,0.00014245,2]
[398951502,1766017839363,-500.0,0.00014245,2]
[398951503,1766017839372,-609.94258626,0.00014245,2]
[398951504,1766017839380,-500.0,0.00014245,2]
[398951505,1766017839389,-500.0,0.00014245,2]
[398951506,1766017839398,-500.0,0.00014245,2]
[398951507,1766017839407,-500.0,0.00014245,2]
[398951508,1766017839416,-500.0,0.00014245,2]
[398951509,1766017839425,-500.0,0.00014245,2]
[398951510,1766017839434,-500.0,0.00014245,2]
[398951511,1766017839442,-500.0,0.00014245,2]
[398951512,1766017839451,-500.0,0.00014245,2]
[398951513,1766017839460,-500.0,0.00014245,2]
[398951514,1766017839469,-500.0,0.00014245,2]
[398951515,1766017839480,-500.0,0.00014245,2]
[398951516,1766017839489,-500.0,0.00014245,2]
[398951517,1766017839498,-500.0,0.00014245,2]
[398951518,1766017839507,-500.0,0.00014245,2]
[398951519,1766017839516,-500.0,0.00014245,2]
[398951520,1766017839525,-500.0,0.00014245,2]
[398951521,1766017839534,-500.0,0.00014245,2]
[398951522,1766017839543,-500.0,0.00014245,2]
[398951523,1766017839553,-500.0,0.00014245,2]
[398951524,1766017839562,-500.0,0.00014245,2]
[398951525,1766017839571,-500.0,0.00014245,2]
[398951526,1766017839579,-500.0,0.00014245,2]
[398951527,1766017839589,-500.0,0.00014245,2]
[398951528,1766017839598,-1200.0,0.00014246,2]
[398951529,1766017839607,-26041.56695833,0.00014247,2]
[398951530,1766017839616,-1000.62597375,0.00014247,2]
[398951531,1766017839625,-698.23267639,0.00014247,2]
[398951532,1766017839634,-185.14941286,0.00014247,2]
[398951533,1766017839643,-284.84269995,0.00014247,2]
[398951534,1766017839652,-1002.42397385,0.00014247,2]
[398951535,1766017839661,-151.0,0.00014358,2]
[398951536,1766017839670,-151.0,0.00014358,2]
[398951537,1766017839679,-151.0,0.00014358,2]
[398951538,1766017839688,-151.0,0.00014358,2]
[398951539,1766017839697,-151.0,0.00014358,2]
[398951540,1766017839706,-151.0,0.00014358,2]
[398951541,1766017839715,-271.47118896,0.00014358,2]
[398951542,1766017839724,-236.61727461,0.00014367,2]
[398951543,1766017839734,-500.0,0.00014368,2]
[398951544,1766017839743,-394.97990822,0.00014368,2]
[398951545,1766017839752,-500.0,0.00014519,2]
[398951546,1766017839762,-600.0,0.00014655,2]
[398951547,1766017839771,-500.0,0.00014793,2]
[398951548,1766017839780,-195.0,0.00015011,2]
[398951549,1766017839790,-420.0,0.00015011,2]
[398951550,1766017839799,-420.0,0.00015011,2]
[398951551,1766017839808,-621.56830324,0.00015066,2]
[398951552,1766017839818,-1680.0,0.00015067,2]
[398951553,1766017839827,-634.0,0.00015603,2]
[398951554,1766017839837,-177.0,0.00015972,2]
[398951555,1766017839846,-720.0,0.0001612,2]
[398951556,1766017839856,-587.0,0.00016451,2]
[398951557,1766017839866,-290.0,0.00016451,2]
[398951558,1766017839875,-2351.0,0.00016574,2]
[398951559,1766017839884,-864.0,0.00017732,2]
[398951560,1766017839893,-204.0,0.00017972,2]
[398951561,1766017839903,-823.0,0.00018028,2]
[398951562,1766017839913,-450.0,0.00018232,2]
[398951563,1766017839922,-1000.0,0.00019506,2]
[398951564,1766017839932,-1152.0,0.00019757,2]
[398951565,1766017839942,-231.0,0.00019972,2]
[398951566,1766017839956,-1000.0,0.00021456,10]
[398951567,1766017839966,-244.0,0.00021456,10]
[398951568,1766017839976,-756.52681085,0.000215,2]
[398951569,1766017839990,-11999.71440085,0.000215,2]
[398951570,1766017840000,-720.0,0.00021651,2]
[398951571,1766017840010,-258.0,0.00021972,2]
[398951572,1766017840019,-251.17,0.00022,7]
[398951573,1766017840028,-500.0,0.00023601,2]
[398951574,1766017840038,-1000.0,0.00023602,10]
[398951575,1766017840047,-492.0,0.00023602,10]
[398951576,1766017840057,-1000.0,0.00025962,10]
[398951577,1766017840066,-791.0,0.00025962,10]
[398951578,1766017840075,-2311.28147644,0.00026,30]
[398951579,1766017840085,-160.0,0.00026375,2]
[398951580,1766017840094,-260.0,0.00026923,2]
[398951581,1766017840106,-360.0,0.00027471,2]
[398951582,1766017840115,-289.69784055,0.00028558,30]
[398951583,1766017840127,-710.30215945,0.00028558,30]
[398951584,1766017840136,-455.46589606,0.00028558,30]
[398951612,1766017840644,-544.53410394,0.00028558,30]
[398951613,1766017840654,-46.46589606,0.000288,2]
[398951617,1766017840677,-250.0,0.000288,2]
[398951619,1766017840687,-17284.23162322,0.000288,2]
[398951621,1766017840697,-228.69505745,0.00030876,2]
[398951623,1766017840706,-1000.0,0.00031414,30]
[398951625,1766017840715,-1000.0,0.00031414,30]
[398951627,1766017840724,-579.0,0.00031414,30]
[398951629,1766017840733,-453.86729545,0.00031491,2]
[398951631,1766017840743,-156.47288383,0.0003236,10]
[398951633,1766017840751,-248.31217653,0.00033051,10]
[398951719,1766017841549,-872.29,0.00033051,10]
[398951721,1766017841561,-879.39782347,0.00033051,10]
[398951723,1766017841571,-2000.0,0.00033059,10]
[398951725,1766017841579,-2000.0,0.00033068,10]
[398951727,1766017841589,-2000.0,0.00033077,10]
[398951729,1766017841598,-2000.0,0.00033086,10]
[398951731,1766017841607,-2000.0,0.00033095,10]
[398951733,1766017841616,-2000.0,0.00033103,10]
[398951735,1766017841625,-2000.0,0.00033112,10]
[398951737,1766017841635,-2000.0,0.00033121,10]
[398951739,1766017841644,-2000.0,0.0003313,10]
[398951741,1766017841653,-2000.0,0.00033139,10]
[398951743,1766017841662,-2000.0,0.00033147,10]
[398951745,1766017841671,-2000.0,0.00033156,10]
[398951747,1766017841680,-2000.0,0.00033165,10]
[398951749,1766017841689,-500.0,0.00033198,2]
[398951751,1766017841698,-500.0,0.00033198,2]
[398951753,1766017841707,-170.579,0.00033199,35]
[398951755,1766017841717,-154.9841517,0.00033361,10]
[398951757,1766017841726,-500.0,0.00034554,2]
[398951759,1766017841735,-1000.0,0.00034555,30]
[398951761,1766017841744,-1000.0,0.00034555,30]
[398951763,1766017841754,-1000.0,0.00034555,30]
[398951765,1766017841763,-1067.0166751,0.00034813,2]
[398951767,1766017841772,-345.0,0.00035046,30]
[398951769,1766017841781,-344.59,0.0003526,7]
[398951771,1766017841790,-251.17,0.000353,7]
[398951773,1766017841799,-500.0,0.00035398,30]
[398951775,1766017841808,-500.0,0.00035399,30]
[398951777,1766017841817,-684.7229129,0.00035537,2]
[398951779,1766017841826,-500.0,0.00035616,7]
[398951781,1766017841835,-350.0,0.00035616,7]
[398951783,1766017841845,-500.0,0.00035616,7]
[398951785,1766017841854,-500.0,0.00035616,7]
[398951787,1766017841863,-500.0,0.00035616,7]
[398951789,1766017841873,-500.0,0.00035616,7]
[398951791,1766017841882,-204.70280775,0.0003621,2]
[398951793,1766017841891,-266.24499033,0.0003624,2]
[398951795,1766017841900,-500.0,0.00036398,30]
[398951797,1766017841910,-500.0,0.00036498,30]
[398951799,1766017841921,-6450.11250748,0.000365,120]
[398951801,1766017841933,-617.73031854,0.000365,120]
[398951804,1766017841944,-5111.0,0.000365,120]
[398951963,1766017843683,-3592.43350816,0.00014145,2]
[398951965,1766017843693,-7653.15717398,0.000365,120]
[398951967,1766017843702,-160.0,0.00036826,2]
[398951970,1766017843711,-33286.51686991,0.00036996,2]
[398951972,1766017843720,-223.59,0.00037,30]
[398951974,1766017843730,-4250.09,0.00037,2]
[398951975,1766017843739,-4.18085213,0.00037358,7]
[398951978,1766017843752,-495.81914787,0.00037358,7]
[398951980,1766017843762,-160.0,0.00037482,3]
[398951982,1766017843771,-500.0,0.00037545,2]
[398951984,1766017843780,-632.0,0.00037545,2]
[398951986,1766017843789,-503.0,0.00038011,30]
[398951988,1766017843798,-160.0,0.00038089,4]
[398951990,1766017843807,-500.0,0.0003823,30]
[398951992,1766017843815,-816.9611318,0.00038338,2]
[398951994,1766017843824,-160.0,0.00038696,5]
[398951996,1766017843833,-4598.08675691,0.0003874,30]
[398951998,1766017843844,-12820.54335588,0.0003874,30]
[398952000,1766017843854,-150.0,0.0003874,30]
[398952002,1766017843863,-150.0,0.0003874,30]
[398952004,1766017843872,-150.0,0.0003874,30]
[398952006,1766017843882,-150.0,0.0003874,30]
[398952008,1766017843891,-150.0,0.0003874,30]
[398952010,1766017843900,-150.0,0.0003874,30]
[398952012,1766017843908,-150.0,0.0003874,30]
[398952014,1766017843918,-150.0,0.0003874,30]
[398952016,1766017843927,-186.71295896,0.0003874,30]
[398952019,1766017843936,-3895.8527632,0.0003874,30]
[398952021,1766017843947,-296.04,0.0003874,30]
[398952108,1766017844777,-259.0,0.000365,30]
[398952110,1766017844786,-1153.0,0.0003874,30]
[398952304,1766017846944,-250.0,0.00017537,2]
[398952305,1766017846953,-2000.0,0.00033042,10]
[398952306,1766017846962,-24655.1072368,0.0003874,30]
[398952307,1766017846971,-514.5,0.0003874,30]
[398952308,1766017846980,-160.0,0.00039304,6]
[398952309,1766017846989,-343.56255376,0.00039344,120]
[398952311,1766017846999,-500.0,0.00039344,2]
[398952313,1766017847008,-8523.8955605,0.00039345,2]
[398952315,1766017847018,-10798.4524704,0.00039345,2]
[398952317,1766017847028,-151.64181,0.00039345,30]
[398952319,1766017847037,-158.332361,0.00039345,120]
[398952321,1766017847046,-151.0,0.00039345,120]
[398952323,1766017847055,-151.0,0.00039345,120]
[398952324,1766017847064,-151.0,0.00039345,120]
[398952326,1766017847073,-151.0,0.00039345,120]
[398952328,1766017847082,-151.0,0.00039345,120]
[398952330,1766017847092,-561.10323553,0.0003953,2]
[398952332,1766017847102,-228.69505745,0.0003963,2]
[398952334,1766017847111,-229.67809594,0.0003963,2]
[398952336,1766017847121,-3155.86422799,0.00039762,2]
[398952338,1766017847130,-574.12855637,0.00039762,2]
[398952340,1766017847139,-200.0,0.00039762,2]
[398952342,1766017847148,-2773.56790519,0.00039762,2]
[398952344,1766017847157,-160.0,0.00039911,7]
[398952346,1766017847166,-595.37131296,0.0004031,2]
[398952348,1766017847175,-200.0,0.0004031,2]
[398952350,1766017847184,-251.17,0.000404,7]
[398952352,1766017847193,-160.0,0.00040518,8]
[398952354,1766017847202,-250.0,0.00040712,120]
[398952356,1766017847211,-617.40005154,0.00040858,2]
[398952358,1766017847220,-200.0,0.00040858,2]
[398952360,1766017847229,-500.0,0.00041095,120]
[398952362,1766017847238,-160.0,0.00041125,9]
[398952363,1766017847247,-500.0,0.00041369,120]
[398952365,1766017847256,-223.59,0.000414,30]
[398952367,1766017847265,-4250.09,0.000414,2]
[398952369,1766017847274,-640.24385345,0.00041406,2]
[398952371,1766017847283,-200.0,0.00041406,2]
[398952373,1766017847292,-500.0,0.00041643,120]
[398952375,1766017847301,-160.0,0.00041733,10]
[398952377,1766017847311,-500.0,0.00041917,120]
[398952379,1766017847319,-663.93287602,0.00041954,2]
[398952381,1766017847328,-200.0,0.00041954,2]
[398952383,1766017847337,-2023.82606097,0.00042,120]
[398952385,1766017847346,-2472.46625095,0.00042014,2]
[398952387,1766017847356,-500.0,0.00042191,120]
[398952389,1766017847365,-384.79936559,0.00042305,2]
[398952391,1766017847374,-2000.0,0.00042312,2]
[398952393,1766017847383,-160.0,0.0004234,11]
[398952395,1766017847393,-162.91362868,0.0004234,5]
[398952397,1766017847403,-2000.0,0.00042366,15]
[398952399,1766017847413,-2000.0,0.00042366,15]
[398952401,1766017847423,-500.0,0.00042367,2]
[398952403,1766017847432,-500.0,0.00042367,120]
[398952405,1766017847441,-500.0,0.00042367,10]
[398952407,1766017847449,-500.0,0.00042367,120]
[398952409,1766017847458,-1000.0,0.00042367,120]
[398952410,1766017847467,-199.0,0.00042367,30]
[398952412,1766017847476,-500.0,0.00042367,120]
[398952414,1766017847485,-500.0,0.00042367,120]
[398952416,1766017847493,-500.0,0.00042367,120]
[398952418,1766017847502,-500.0,0.00042367,120]
[398952420,1766017847511,-2000.0,0.00042367,15]
[398952422,1766017847520,-498.5,0.00042465,120]
[398952424,1766017847529,-574.12855637,0.00042502,2]
[398952426,1766017847538,-200.0,0.00042502,2]
[398952428,1766017847547,-1000.0,0.00042641,120]
[398952430,1766017847556,-500.0,0.00042641,120]
[398952432,1766017847565,-1000.0,0.00042915,120]
[398952434,1766017847574,-500.0,0.00042915,120]
[398952436,1766017847583,-200.0,0.0004305,2]
[398952438,1766017847592,-2000.0,0.00043188,15]